bitfinex-derivatives/quotes_SOLF0:USTF0_20241226
["timestamp","ask_amount","ask_price","bid_price","bid_amount"]
[1735180714645,2.5235,198.33,198.23,10.99287535]
[1735180715342,3.1374,198.35,198.23,10.99287535]
[1735180715545,5.6607,198.35,198.29,2.5239]
[1735180715947,10.99287535,198.4,198.29,10.99287535]
[1735180716437,10.99287535,198.4,198.26,10.99287535]
[1735180716644,10.99287535,198.35,198.23,10.99287535]
[1735180716843,4.751,198.34,198.23,10.99287535]
[1735180717544,2.5238,198.3,198.25,2.5244]
[1735180718245,2.5243,198.26,198.21,2.5248]
[1735180718446,2.5243,198.26,198.2,10.99287535]
[1735180718649,10.99287535,198.32,198.2,10.99287535]
[1735180719136,10.99287535,198.32,198.2,13.51777535]
[1735180719448,10.99287535,198.32,198.2,10.99287535]
[1735180719943,10.99287535,198.32,198.21,2.5249]
[1735180720343,10.99287535,198.32,198.2,10.99287535]
[1735180721550,2.524,198.28,198.23,2.5246]
[1735180723741,10.99287535,198.32,198.2,13.51777535]
[1735180724346,10.99287535,198.32,198.21,2.5249]
[1735180724546,10.99287535,198.32,198.2,10.99287535]
[1735180725346,2.5243,198.27,198.2,10.99287535]
[1735180726446,10.99287535,198.32,198.2,10.99287535]
[1735180726647,2.5244,198.25,198.2,10.99287535]
[1735180727043,14.15287535,198.29,198.17,10.99287535]
[1735180727251,2.5249,198.22,198.17,10.99287535]
[1735180727844,3.16,198.28,198.17,10.99287535]
[1735180728042,3.16,198.31,198.2,10.99287535]
[1735180728350,2.5242,198.27,198.2,10.99287535]
[1735180728751,2.5242,198.27,198.22,2.5247]
[1735180730339,2.524,198.29,198.23,2.5246]
[1735180731045,3.16,198.31,198.23,2.5246]
[1735180731250,2.5241,198.28,198.23,2.5246]
[1735180733247,3.16,198.31,198.23,2.5246]
[1735180733854,2.5244,198.25,198.22,2.5248]
[1735180734054,3.16,198.31,198.17,14.15287535]
[1735180734348,3.16,198.31,198.18,2.5252]
[1735180734554,2.5251,198.2,198.14,14.15287535]
[1735180735652,2.5251,198.2,198.16,2.5256]
[1735180736956,2.5249,198.21,198.16,2.5256]
[1735180737150,2.5249,198.21,198.17,2.5254]
[1735180739549,3.096,198.25,198.14,10.99287535]
[1735180739749,2.5246,198.24,198.17,10.99287535]
[1735180740552,2.5246,198.24,198.19,2.5251]
[1735180745061,2.5246,198.24,198.17,10.99287535]
[1735180745253,2.5246,198.24,198.2,2.525]
[1735180747164,5.6204,198.25,198.2,2.525]
[1735180748363,3.096,198.25,198.22,2.5248]
[1735180750567,2.5241,198.28,198.23,2.5246]
[1735180751067,3.289,198.31,198.23,2.5246]
[1735180751258,2.5242,198.27,198.23,2.5246]
[1735180753757,3.289,198.31,198.26,7.0409729]
[1735180753962,1.5371,198.34,198.28,7.0409729]
[1735180754369,4.0604,198.34,198.3,2.5238]
[1735180754667,1.5371,198.34,198.28,7.0409729]
[1735180755468,2.5235,198.33,198.29,2.5239]
[1735180756068,7.0409729,198.36,198.3,2.5237]
[1735180756373,1.95695138,198.4,198.32,7.0409729]
[1735180756868,1.95695138,198.4,198.34,9.5640729]
[1735180757070,7.0409729,198.39,198.34,2.5231]
[1735180757871,1.95695138,198.4,198.34,2.5231]
[1735180758066,1.95695138,198.4,198.36,2.523]
[1735180759166,4.47945138,198.4,198.36,2.523]
[1735180759473,1.95695138,198.4,198.36,2.523]
[1735180759770,1.95695138,198.4,198.37,2.5228]
[1735180760171,2.5224,198.41,198.33,3.16]
[1735180761473,2.5224,198.41,198.36,2.523]
[1735180762865,3.1461,198.43,198.35,10.98772812]
[1735180763175,3.16,198.47,198.4,2.5225]
[1735180763370,3.16,198.49,198.4,2.5225]
[1735180764464,2.5218,198.46,198.4,2.5225]
[1735180765368,2.5216,198.48,198.43,2.5221]
[1735180765574,3.1361,198.52,198.41,10.98772812]
[1735180765771,1.6386,198.52,198.44,10.98772812]
[1735180767472,2.5208,198.54,198.44,10.98772812]
[1735180767673,2.5208,198.54,198.47,10.98772812]
[1735180768467,2.5208,198.54,198.49,2.5213]
[1735180768965,1.5166,198.59,198.47,14.14772812]
[1735180769167,3.0582,198.59,198.5,2.5212]
[1735180769573,3.0582,198.59,198.55,2.5206]
[1735180769773,10.98772812,198.68,198.56,10.98772812]
[1735180770067,2.5197,198.63,198.57,2.5203]
[1735180770373,3.16,198.67,198.57,2.5203]
[1735180770963,3.1032,198.69,198.59,10.98772812]
[1735180771165,3.1032,198.69,198.62,10.98772812]
[1735180771865,5.97727552,198.74,198.62,10.98772812]
[1735180772466,5.97727552,198.74,198.63,2.5195]
[1735180772663,2.81727552,198.74,198.65,10.98772812]
[1735180773277,2.5181,198.75,198.69,2.5188]
[1735180773575,2.5181,198.75,198.6,3.16]
[1735180773576,10.98772812,198.79,198.6,3.16]
[1735180773767,10.98772812,198.79,198.65,10.98772812]
[1735180774572,2.5185,198.72,198.65,13.50702812]
[1735180774772,10.98772812,198.82,198.68,10.98772812]
[1735180774968,3.16,198.81,198.68,10.98772812]
[1735180776074,3.16,198.8,198.68,10.98772812]
[1735180776475,2.5181,198.75,198.69,2.5188]
[1735180777269,3.16,198.8,198.68,10.98772812]
[1735180777472,3.16,198.82,198.71,10.98772812]
[1735180777875,2.5175,198.8,198.72,2.5183]
[1735180778077,14.14772812,198.82,198.66,3.16]
[1735180778275,14.14772812,198.82,198.66,14.14772812]
[1735180778477,14.14772812,198.82,198.56,52.4]
[1735180778478,10.98772812,198.76,198.63,10.98772812]
[1735180778674,14.14772812,198.76,198.63,14.14772812]
[1735180778874,10.98772812,198.73,198.6,10.98772812]
[1735180779076,4.8729,198.72,198.6,10.98772812]
[1735180779276,10.98772812,198.7,198.59,3.16]
[1735180779477,3.16,198.69,198.59,3.16]
[1735180779678,3.16,198.69,198.58,2.5201]
[1735180780078,3.16,198.69,198.57,10.98772812]
[1735180780280,10.98772812,198.67,198.54,10.98772812]
[1735180780481,10.98772812,198.67,198.51,10.98772812]
[1735180780776,10.98772812,198.67,198.52,2.5209]
[1735180781170,10.98772812,198.64,198.51,10.98772812]
[1735180781378,4.6925,198.63,198.51,10.98772812]
[1735180781882,4.6925,198.63,198.5,3.16]
[1735180782171,10.98772812,198.61,198.48,10.98772812]
[1735180782373,3.011,198.6,198.48,10.98772812]
[1735180782779,3.011,198.6,198.51,10.98772812]
[1735180782980,3.011,198.6,198.42,85.46052296]
[1735180783178,3.011,198.6,198.49,10.98772812]
[1735180783482,3.011,198.6,198.47,2.5215]
[1735180784483,2.5208,198.54,198.47,2.5215]
[1735180784674,3.16,198.57,198.47,2.5215]
[1735180784876,3.16,198.57,198.45,2.5218]
[1735180785177,3.16,198.57,198.4,20.71432724]
[1735180785372,3.16,198.57,198.4,17.55432724]
[1735180785684,3.16,198.57,198.42,2.5222]
[1735180786689,17.55432724,198.54,198.36,20.07722724]
[1735180786884,1.5591,198.53,198.36,20.71432724]
[1735180789388,2.5217,198.47,198.36,20.71432724]
[1735180789593,2.5217,198.47,198.39,2.5226]
[1735180789790,3.16,198.48,198.39,2.5226]
[1735180789990,3.16,198.48,198.36,17.55432724]
[1735180790191,3.2274,198.47,198.32,17.55432724]
[1735180791195,2.5223,198.42,198.34,2.5232]
[1735180791390,3.2274,198.47,198.34,2.5232]
[1735180792096,3.2274,198.47,198.35,2.5231]
[1735180793389,2.5224,198.42,198.35,2.5231]
[1735180793896,3.2274,198.47,198.32,17.55432724]
[1735180794093,17.55432724,198.46,198.28,17.55432724]
[1735180794598,2.5232,198.35,198.28,20.07822724]
[1735180794790,2.5232,198.35,198.28,17.55432724]
[1735180795190,2.5228,198.38,198.31,2.5235]
[1735180795494,3.16,198.42,198.28,17.55432724]
[1735180796187,2.5225,198.41,198.28,17.55432724]
[1735180796891,2.5225,198.41,198.35,2.5231]
[1735180798795,3.16,198.45,198.32,20.71432724]
[1735180798999,2.5222,198.43,198.36,2.5229]
[1735180799297,2.5222,198.43,198.32,20.71432724]
[1735180799498,2.5222,198.43,198.36,2.5229]
[1735180800100,2.5222,198.43,198.37,2.5228]
[1735180800502,3.16,198.45,198.32,20.71432724]
[1735180800701,1.6595,198.44,198.32,17.55432724]
[1735180801298,1.6595,198.44,198.32,2.5234]
[1735180801493,1.6595,198.44,198.29,3.16]
[1735180801899,2.5223,198.42,198.36,2.523]
[1735180802202,2.5223,198.42,198.32,17.55432724]
[1735180802403,1.6595,198.44,198.32,17.55432724]
[1735180802600,2.5223,198.42,198.35,2.5231]
[1735180802801,1.6595,198.44,198.32,17.55432724]
[1735180803601,2.5226,198.4,198.35,2.5231]
[1735180804899,1.6595,198.44,198.32,17.55432724]
[1735180805700,2.5222,198.43,198.37,2.5228]
[1735180806101,2.5222,198.43,198.29,3.16]
[1735180806305,2.5222,198.43,198.35,10.98431228]
[1735180806807,1.6595,198.44,198.4,2.5224]
[1735180807005,3.2274,198.47,198.38,10.98431228]
[1735180808002,5.7491,198.47,198.38,10.98431228]
[1735180809603,3.16,198.5,198.41,10.98431228]
[1735180810010,3.16,198.5,198.41,13.50661228]
[1735180810311,2.5216,198.47,198.41,13.50661228]
[1735180810504,2.5216,198.47,198.41,10.98431228]
[1735180810701,2.5215,198.48,198.43,2.5221]
[1735180811909,3.16,198.5,198.43,2.5221]
[1735180812110,2.5216,198.47,198.43,2.5221]
[1735180812304,3.16,198.5,198.41,10.98431228]
[1735180812512,2.5213,198.5,198.41,10.98431228]
[1735180813307,14.22711228,198.57,198.44,10.98431228]
[1735180813508,3.2428,198.57,198.44,14.14431228]
[1735180813704,3.2428,198.57,198.47,10.98431228]
[1735180813903,2.5208,198.54,198.49,2.5213]
[1735180814101,3.2428,198.57,198.47,10.98431228]
[1735180814706,14.22711228,198.57,198.44,14.14431228]
[1735180815004,10.98431228,198.54,198.41,10.98431228]
[1735180816413,2.5217,198.47,198.42,2.5222]
[1735180816614,3.16,198.51,198.41,10.98431228]
[1735180817416,2.5214,198.49,198.44,2.522]
[1735180817816,3.16,198.51,198.41,10.98431228]
[1735180818317,3.16,198.51,198.42,2.5221]
[1735180818318,2.5215,198.48,198.42,2.5221]
[1735180818614,2.5215,198.48,198.41,10.98431228]
[1735180819319,14.14431228,198.51,198.36,6.885503]
[1735180819518,1.6474,198.47,198.36,6.885503]
[1735180819718,1.6117,198.46,198.36,6.885503]
[1735180819914,2.5227,198.39,198.36,6.885503]
[1735180820711,2.5225,198.41,198.35,2.5231]
[1735180821510,2.5225,198.4,198.35,2.5231]
[1735180821908,14.14431228,198.45,198.32,14.14431228]
[1735180822112,14.14431228,198.45,198.29,17.86981528]
[1735180822313,10.98431228,198.42,198.29,17.86981528]
[1735180822509,10.98431228,198.42,198.31,2.5236]
[1735180822716,3.16,198.42,198.33,10.98431228]
[1735180823115,2.523,198.37,198.31,2.5235]
[1735180823418,3.16,198.42,198.3,10.98431228]
[1735180823718,2.5225,198.4,198.3,10.98431228]
[1735180824120,5.6823,198.42,198.35,2.5231]
[1735180824319,5.6823,198.42,198.33,10.98431228]
[1735180825418,5.6823,198.42,198.37,2.5229]
[1735180826019,5.6823,198.42,198.33,10.98431228]
[1735180826217,5.6823,198.42,198.36,2.523]
[1735180826619,1.6117,198.46,198.4,2.5225]
[1735180826814,1.6117,198.46,198.36,10.98431228]
[1735180828223,2.5219,198.45,198.4,2.5224]
[1735180828520,1.6474,198.47,198.36,10.98431228]
[1735180829420,4.6869,198.5,198.36,10.98431228]
[1735180829624,3.16,198.51,198.39,10.98431228]
[1735180830025,3.16,198.51,198.44,2.5219]
[1735180830026,2.5214,198.49,198.44,2.5219]
[1735180832525,2.5213,198.5,198.45,2.5218]
[1735180832726,3.16,198.51,198.42,10.98431228]
[1735180833121,1.59,198.54,198.42,10.98431228]
[1735180833322,1.6569,198.58,198.45,10.98431228]
[1735180833524,1.6569,198.58,198.48,10.98431228]
[1735180834324,2.5205,198.57,198.51,2.521]
[1735180834929,2.5202,198.59,198.53,2.5208]
[1735180835830,2.52,198.6,198.55,2.5206]
[1735180836129,3.055,198.63,198.51,10.98431228]
[1735180836427,2.5199,198.61,198.55,2.5205]
[1735180837127,2.5199,198.61,198.56,2.5204]
[1735180837624,2.5197,198.62,198.54,10.98431228]
[1735180838527,2.5197,198.62,198.58,2.5202]
[1735180838823,2.5196,198.63,198.58,2.5202]
[1735180839425,2.5197,198.62,198.57,2.5203]
[1735180840224,1.5827,198.64,198.57,2.5203]
[1735180840428,2.5196,198.63,198.57,2.5203]
[1735180844325,1.5028,198.69,198.57,10.98431228]
[1735180844524,10.98431228,198.68,198.54,10.98431228]
[1735180844724,10.98431228,198.65,198.51,10.98431228]
[1735180844930,2.5202,198.59,198.53,2.5208]
[1735180845129,2.5202,198.59,198.51,10.98431228]
[1735180845530,4.6628,198.69,198.57,10.98431228]
[1735180846229,2.5196,198.64,198.59,2.5201]
[1735180846527,4.6628,198.69,198.59,2.5201]
[1735180847030,4.6628,198.69,198.61,2.5198]
[1735180848528,2.5192,198.66,198.61,2.5198]
[1735180848723,4.6628,198.69,198.57,10.98431228]
[1735180848929,2.519,198.68,198.63,2.5196]
[1735180849329,4.6628,198.69,198.63,2.5196]
[1735180849629,1.5028,198.69,198.63,2.5196]
[1735180849826,1.5028,198.69,198.65,2.5193]
[1735180851430,1.5028,198.69,198.62,2.5196]
[1735180851630,1.5028,198.69,198.6,10.98431228]
[1735180852426,4.0216,198.69,198.64,2.5194]
[1735180855531,1.5028,198.69,198.6,10.98431228]
[1735180855724,1.5028,198.69,198.57,10.98431228]
[1735180856133,2.5198,198.62,198.57,13.50461228]
[1735180856435,3.16,198.66,198.54,10.98431228]
[1735180856626,2.5203,198.58,198.53,2.5208]
[1735180858634,2.5203,198.58,198.51,10.98431228]
[1735180858936,2.5201,198.59,198.54,2.5207]
[1735180859234,10.98431228,198.65,198.54,2.5207]
[1735180859235,3.16,198.65,198.54,10.98431228]
[1735180859436,2.52,198.61,198.56,2.5204]
[1735180861130,2.52,198.61,198.57,2.5203]
[1735180861335,2.5197,198.62,198.54,10.98431228]
[1735180861835,2.5194,198.65,198.54,10.98431228]
[1735180862039,3.16,198.66,198.57,10.98431228]
[1735180862539,5.6793,198.66,198.57,10.98431228]
[1735180863536,1.5028,198.69,198.57,10.98431228]
[1735180863740,2.5191,198.67,198.57,10.98431228]
[1735180864636,2.519,198.68,198.6,10.98431228]
[1735180864830,1.5028,198.69,198.6,10.98431228]
[1735180865033,2.5192,198.67,198.6,13.50421228]
[1735180865232,1.5028,198.69,198.6,13.50421228]
[1735180866041,1.5028,198.69,198.6,10.98431228]
[1735180866639,1.5028,198.69,198.66,2.5192]
[1735180867036,1.6234,198.71,198.66,2.5192]
[1735180868442,4.1421,198.71,198.66,2.5192]
[1735180868840,4.1421,198.71,198.63,10.98431228]
[1735180869444,1.6234,198.71,198.63,10.98431228]
[1735180869743,2.5188,198.69,198.64,2.5193]
[1735180870139,2.5188,198.69,198.63,10.98431228]
[1735180870344,2.5188,198.69,198.65,2.5193]
[1735180870947,4.1421,198.71,198.65,2.5193]
[1735180871143,1.6234,198.71,198.63,10.98431228]
[1735180871342,1.6234,198.71,198.61,3.16]
[1735180871745,2.5192,198.67,198.61,3.16]
[1735180872644,2.519,198.68,198.63,2.5196]
[1735180873552,1.6234,198.71,198.63,10.98431228]
[1735180874050,4.1542,198.74,198.69,2.5188]
[1735180874749,1.6359,198.74,198.69,2.5188]
[1735180874948,2.5183,198.73,198.69,2.5188]
[1735180876346,2.5183,198.73,198.61,3.16]
[1735180876347,1.6359,198.74,198.63,10.98431228]
[1735180876547,12.62021228,198.74,198.61,3.16]
[1735180876745,12.62021228,198.74,198.61,2.5198]
[1735180876950,12.62021228,198.74,198.6,10.98431228]
[1735180877451,2.5188,198.69,198.64,2.5193]
[1735180877643,12.62021228,198.74,198.6,10.98431228]
[1735180878047,2.5188,198.69,198.64,2.5194]
[1735180878251,3.16,198.7,198.6,10.98431228]
[1735180878647,2.5195,198.64,198.59,2.5201]
[1735180879152,1.5571,198.68,198.57,10.98431228]
[1735180879357,12.54141228,198.68,198.56,6.885503]
[1735180880050,2.5199,198.61,198.56,2.5205]
[1735180880654,3.16,198.64,198.54,10.98431228]
[1735180880855,1.5347,198.63,198.54,10.98431228]
[1735180881155,1.5347,198.63,198.51,10.98431228]
[1735180881355,1.5347,198.63,198.53,2.5207]
[1735180882656,2.5202,198.59,198.53,2.5207]
[1735180883454,1.5347,198.63,198.51,13.50531228]
[1735180883656,1.5347,198.63,198.51,10.98431228]
[1735180884555,2.5202,198.59,198.54,2.5207]
[1735180885161,1.5347,198.63,198.51,10.98431228]
[1735180885459,1.5347,198.63,198.54,10.98431228]
[1735180885955,1.5347,198.63,198.58,2.5202]
[1735180886256,1.5347,198.63,198.54,14.14431228]
[1735180886861,4.0543,198.63,198.54,14.14431228]
[1735180887761,1.5347,198.63,198.54,10.98431228]
[1735180887960,2.52,198.6,198.54,10.98431228]
[1735180889462,2.52,198.6,198.55,2.5206]
[1735180892259,1.5347,198.63,198.58,2.5202]
[1735180892864,1.5347,198.63,198.57,10.98431228]
[1735180893063,4.0543,198.63,198.59,2.5201]
[1735180893760,2.5196,198.63,198.59,2.5201]
[1735180894463,3.16,198.67,198.49,3.16]
[1735180894659,10.98431228,198.61,198.48,17.86981528]
[1735180894861,2.5211,198.52,198.48,17.86981528]
[1735180895357,1.5936,198.59,198.48,6.885503]
[1735180895564,1.5936,198.59,198.47,2.5215]
[1735180895964,1.5936,198.59,198.46,2.5216]
[1735180896462,2.5211,198.52,198.46,2.5216]
[1735180896663,10.98431228,198.58,198.46,2.5216]
[1735180897075,2.5212,198.51,198.46,2.5216]
[1735180897565,2.5213,198.5,198.45,13.50621228]
[1735180897959,3.16,198.54,198.45,10.98431228]
[1735180898161,10.98431228,198.58,198.5,2.5212]
[1735180898162,5.6806,198.56,198.5,2.5212]
[1735180898360,3.16,198.56,198.5,2.5212]
[1735180899562,2.5207,198.55,198.5,2.5212]
[1735180900164,3.16,198.56,198.5,2.5212]
[1735180900362,3.16,198.56,198.45,10.98431228]
[1735180901057,2.5209,198.53,198.46,2.5217]
[1735180901258,3.16,198.56,198.45,10.98431228]
[1735180903059,2.5208,198.54,198.48,2.5215]
[1735180903263,2.5208,198.54,198.45,10.98431228]
[1735180903660,2.5208,198.54,198.5,2.5212]
[1735180903866,2.5206,198.55,198.5,2.5212]
[1735180904570,2.5205,198.57,198.52,2.5209]
[1735180904769,4.7536,198.59,198.48,10.98431228]
[1735180905171,2.5204,198.57,198.48,10.98431228]
[1735180906471,2.5204,198.57,198.52,2.5209]
[1735180914174,1.5936,198.59,198.48,14.14431228]
[1735180914370,1.5936,198.59,198.51,10.98431228]
[1735180914575,63.36431228,198.68,198.48,3.16]
[1735180914576,3.16,198.66,198.54,10.98431228]
[1735180915172,4.687,198.67,198.54,10.98431228]
[1735180915373,4.687,198.67,198.57,10.98431228]
[1735180917177,10.98431228,198.66,198.54,14.14431228]
[1735180918171,2.5198,198.62,198.56,2.5204]
[1735180918472,4.687,198.67,198.54,14.14431228]
[1735180919282,2.5196,198.63,198.58,2.5201]
[1735180920383,4.687,198.67,198.58,2.5201]
[1735180920581,2.5197,198.62,198.58,2.5201]
[1735180920975,2.5197,198.62,198.54,14.14431228]
[1735180921280,2.5197,198.62,198.59,2.5201]
[1735180921472,2.5197,198.62,198.54,14.14431228]
[1735180921680,2.5197,198.62,198.57,2.5202]
[1735180922075,2.5197,198.62,198.54,14.14431228]
[1735180922279,2.5197,198.62,198.58,7.01588887]
[1735180923580,2.5197,198.62,198.58,9.53608887]
[1735180928679,2.5196,198.64,198.6,2.52]
[1735180928883,8.97042121,198.65,198.58,7.01588887]
[1735180929276,2.5194,198.65,198.62,9.53558887]
[1735180929479,3.0736,198.67,198.62,9.53558887]
[1735180929784,2.5188,198.7,198.65,2.5192]
[1735180929982,2.5188,198.7,198.5,5.0425]
[1735180929983,7.01588887,198.7,198.5,5.0425]
[1735180930184,7.01588887,198.68,198.61,7.01588887]
[1735180930487,2.5194,198.65,198.61,9.53568887]
[1735180930888,7.01588887,198.68,198.61,7.01588887]
[1735180931186,7.01588887,198.68,198.62,2.5197]
[1735180931490,7.01588887,198.68,198.61,7.01588887]
[1735180931785,2.5193,198.65,198.61,9.53568887]
[1735180934085,2.5198,198.62,198.57,2.5203]
[1735180934386,7.01588887,198.6,198.51,6.885503]
[1735180934591,2.5205,198.56,198.51,6.885503]
[1735180934784,7.01588887,198.56,198.51,6.885503]
[1735180934980,7.01588887,198.56,198.49,7.01588887]
[1735180935181,2.521,198.52,198.49,7.01588887]
[1735180935385,7.01588887,198.54,198.48,6.885503]
[1735180935990,2.5211,198.51,198.46,7.01588887]
[1735180936190,2.5211,198.51,198.45,2.5218]
[1735180936893,3.16,198.54,198.44,10.9744445]
[1735180937392,2.521,198.52,198.44,10.9744445]
[1735180938489,4.8828,198.59,198.47,10.9744445]
[1735180938693,4.8828,198.59,198.51,10.9744445]
[1735180939097,7.4029,198.59,198.51,10.9744445]
[1735180939792,3.2317,198.59,198.51,10.9744445]
[1735180939996,10.9744445,198.7,198.47,3.16]
[1735180939997,1.654,198.64,198.54,10.9744445]
[1735180940192,3.16,198.67,198.54,10.9744445]
[1735180940393,2.5194,198.65,198.59,2.52]
[1735180941295,2.5195,198.64,198.57,13.4946445]
[1735180941593,2.5195,198.64,198.57,10.9744445]
[1735180942294,2.5198,198.62,198.57,10.9744445]
[1735180943394,2.5198,198.62,198.57,13.4947445]
[1735180944002,3.16,198.67,198.57,10.9744445]
[1735180944295,3.16,198.67,198.58,2.5201]
[1735180945402,2.5197,198.63,198.58,2.5201]
[1735180948709,2.5197,198.63,198.57,10.9744445]
[1735180949008,2.5197,198.63,198.59,2.5201]
[1735180952913,3.1488,198.69,198.57,10.9744445]
[1735180953219,2.5194,198.65,198.61,2.5198]
[1735180953414,6.3088,198.69,198.57,10.9744445]
[1735180954815,6.3088,198.69,198.6,2.5199]
[1735180955820,2.5195,198.64,198.6,2.5199]
[1735180956222,2.5195,198.64,198.61,7.01365706]
[1735180957914,2.5193,198.66,198.61,7.01365706]
[1735180958119,6.3088,198.69,198.63,7.01365706]
[1735180958519,2.5191,198.68,198.63,9.53315706]
[1735180959019,2.5191,198.68,198.64,2.5194]
[1735180959621,1.654,198.71,198.65,7.01365706]
[1735180959830,2.5187,198.7,198.66,2.5191]
[1735180960821,8.9673819,198.73,198.65,7.01365706]
[1735180961323,7.01365706,198.69,198.58,3.16]
[1735180961626,10.17365706,198.69,198.62,7.01365706]
[1735180961823,1.5659,198.68,198.62,7.01365706]
[1735180962017,2.5196,198.64,198.6,7.01365706]
[1735180963827,2.5194,198.65,198.62,7.01365706]
[1735180965523,2.5196,198.64,198.62,7.01365706]
[1735180967330,2.5196,198.64,198.59,2.52]
[1735180967530,2.5196,198.64,198.61,7.01365706]
[1735180968728,2.5193,198.66,198.63,7.01365706]
[1735180971330,4.6084,198.68,198.63,7.01365706]
[1735180971531,2.5193,198.65,198.63,7.01365706]
[1735180972629,5.6006,198.68,198.64,2.5194]
[1735180972835,5.6006,198.68,198.65,7.01365706]
[1735180974532,2.5193,198.66,198.62,7.01365706]
[1735180974737,3.0816,198.68,198.6,7.01365706]
[1735180974938,3.0816,198.68,198.57,3.16]
[1735180975127,3.0816,198.68,198.6,7.01365706]
[1735180975438,6.2416,198.68,198.6,7.01365706]
[1735180976332,2.5194,198.65,198.62,7.01365706]
[1735180978233,2.5192,198.66,198.62,9.53335706]
[1735180978434,3.0816,198.68,198.64,7.01365706]
[1735180978737,2.5191,198.67,198.64,9.53305706]
[1735180980341,2.5191,198.67,198.64,7.01365706]
[1735180980541,3.0816,198.68,198.56,30.70201201]
[1735180981039,3.0816,198.68,198.62,7.01365706]
[1735180981433,1.95372484,198.73,198.64,7.01365706]
[1735180981632,1.95372484,198.73,198.66,7.01365706]
[1735180981831,2.5188,198.7,198.66,7.01365706]
[1735180982037,1.95372484,198.73,198.66,7.01365706]
[1735180982742,2.5186,198.71,198.67,2.519]
[1735180982942,1.95372484,198.73,198.68,7.01365706]
[1735180983143,2.5187,198.71,198.68,7.01365706]
[1735180987941,140.42203971,198.87,198.7,7.01365706]
[1735180988243,10.17115706,198.83,198.74,7.01365706]
[1735180988540,2.5178,198.77,198.69,3.16]
[1735180988746,2.5178,198.77,198.72,7.01365706]
[1735180988947,2.5179,198.76,198.72,9.53205706]
[1735180989945,2.5178,198.77,198.72,9.53205706]
[1735180990450,2.5178,198.77,198.74,7.01365706]
[1735180990851,2.5175,198.8,198.76,7.01365706]
[1735180991448,2.5172,198.82,198.78,7.01365706]
[1735180992251,5.6746,198.83,198.78,9.53125706]
[1735180992448,3.1575,198.83,198.78,9.53125706]
[1735180993553,2.5172,198.82,198.78,9.53125706]
[1735180994656,3.1575,198.83,198.73,3.16]
[1735180994860,2.5173,198.81,198.77,7.01365706]
[1735180995157,3.1575,198.83,198.77,7.01365706]
[1735180995454,3.16,198.92,198.81,7.01365706]
[1735180995651,7.01365706,198.92,198.85,7.01365706]
[1735180997049,2.5163,198.89,198.85,7.01365706]
[1735180997956,2.5166,198.87,198.82,2.5171]
[1735180998156,7.01365706,198.92,198.83,7.01365706]
[1735180998349,3.16,198.91,198.79,3.16]
[1735180998568,2.5167,198.86,198.83,7.01365706]
[1735181000351,7.01365706,198.9,198.83,7.01365706]
[1735181000558,2.5164,198.88,198.85,7.01365706]
[1735181000949,2.5163,198.89,198.85,7.01365706]
[1735181001154,3.16,198.91,198.85,7.01365706]
[1735181001456,3.16,198.91,198.83,7.01365706]
[1735181001852,3.16,198.93,198.83,7.01365706]
[1735181002158,7.01365706,198.91,198.83,7.01365706]
[1735181003056,2.5165,198.88,198.83,9.53065706]
[1735181004460,7.01365706,198.91,198.77,3.16]
[1735181004756,2.5167,198.86,198.82,7.01365706]
[1735181004962,7.01365706,198.85,198.78,7.01365706]
[1735181005257,7.01365706,198.83,198.76,7.01365706]
[1735181005564,2.5177,198.79,198.76,7.01365706]
[1735181005859,4.7591,198.84,198.76,7.01365706]
[1735181005860,7.01365706,198.83,198.76,7.01365706]
[1735181006657,7.01365706,198.81,198.74,7.01365706]
[1735181007560,7.01365706,198.81,198.58,52.36]
[1735181007758,7.01365706,198.79,198.72,7.01365706]
[1735181007956,10.17365706,198.79,198.72,7.01365706]
[1735181009480,2.5183,198.74,198.72,7.01365706]
[1735181010660,2.5178,198.77,198.72,7.01365706]